{"text_format":"1","workbook":"xlsx","n_sheets":3,"sheets":["VPN Creation Template","VPN IDs to be disabled","Sheet1"],"not_rendered":{"charts":0,"images":0,"macros":1,"external_links":0,"defined_names":1,"comments":0,"pivot_tables":0},"unopened":[],"bounds":{"document_bytes":16777216,"sheet_cells":100000,"rows_first":2000,"rows_last":500,"rows_between":2000,"halvings":0,"cell_chars":16384,"cell_head_chars":4096},"cells_cut":0,"cells_raw":0,"read":"whole","date_system":"1900"}

{"sheet":"VPN Creation Template","index":0,"n_rows":101,"n_cols":22,"rows_kept":101,"cut":false,"hidden":false,"merged":[]}
["SR.no","First Name","SSOID","ICEGATE Email id / \nAlt. email id","Contact No.","Designation","Connectivity type:","Location type:*","Mention the reason for VPN ID requirement:*","in case of others, Please give details here","Site code (for GST & Directorate locations) / UNLO code (For customs locations)","Type of System"," Is the System provided by DG Systems?","Ethernet MAC Address","WI Fi MAC Address","Serial No. of system","","","","","",""]
[1,"Deepak","70004290","dds@xgov.in","8505812332","Sdvds","MPLS","GST Site","Laptops provided by CBIC for audit purposes","BGFGB","FGBFGB","AIO(without wifi)","Yes","FGNGF","FGBNFG","FGFGNBG",null,"AdditionalAssistantDirector","Additional Assistant Director"]
["S. No","Name","SSOID/ VPN ID","Gov.in/Nic.in (Govt. officers) or Icegate email ID (Others)","Contact No.","Designation","Connectivity type:","Location type:*","Mention the reason for VPN ID requirement:*","in case of others, Please give details here","Name of directorate for directorates/ Commissionerate for GST location/ UNLO code for customs locations","Type of System"," Is the System provided by DG Systems?","Ethernet MAC Address","WI Fi MAC Address","Serial No. of system",null,"AdditionalCommissioner","Additional Commissioner"]
[1]
[{"$f":"IF(C5=\"\",\"\",A4+1)","v":""}]
[{"$f":"IF(C6=\"\",\"\",A5+1)","v":""}]
[""]
[""]
[""]
[""]
[""]
[""]
[""]
[""]
[""]
[""]
[""]
[""]
[""]
[""]
[""]
[""]
[""]
[""]
[""]
[""]
[""]
[""]
[""]
[""]
[""]
[""]
[""]
[""]
[""]
[""]
[""]
[""]
[""]
[""]
[""]
[""]
[""]
[""]
[""]
[""]
[""]
[""]
[""]
[""]
[""]
[""]
[""]
[""]
[""]
[""]
[""]
[""]
[""]
[""]
[""]
[""]
[""]
[""]
[""]
[""]
[""]
[""]
[""]
[{"$f":"IF(C70=\"\",\"\",A69+1)","v":""}]
[""]
[""]
[""]
[""]
[""]
[""]
[""]
[""]
[""]
[""]
[""]
[""]
[""]
[""]
[""]
[""]
[""]
[""]
[""]
[""]
[""]
[""]
[""]
[""]
[""]
[""]
[""]
[""]
[""]
[""]
[""]

{"sheet":"VPN IDs to be disabled","index":1,"n_rows":99,"n_cols":4,"rows_kept":99,"cut":false,"hidden":false,"merged":[]}
["SR.no","First Name","Last Name","SSOID"]
[1,"Deepak","Kumar","10004290"]
["S. No","First Name","Last Name","SSOID/VPN ID"]
[1]
[{"$f":"IF(C5=\"\",\"\",A4+1)","v":""}]
[{"$f":"IF(C6=\"\",\"\",A5+1)","v":""}]
[""]
[""]
[""]
[""]
[""]
[""]
[""]
[""]
[""]
[""]
[""]
[""]
[""]
[""]
[""]
[""]
[""]
[""]
[""]
[""]
[""]
[""]
[""]
[""]
[""]
[""]
[""]
[""]
[""]
[""]
[""]
[""]
[""]
[""]
[""]
[""]
[""]
[""]
[""]
[""]
[""]
[""]
[""]
[""]
[""]
[""]
[""]
[""]
[""]
[""]
[""]
[""]
[""]
[""]
[""]
[""]
[""]
[""]
[""]
[""]
[""]
[""]
[""]
[{"$f":"IF(C70=\"\",\"\",A69+1)","v":""}]
[""]
[""]
[""]
[""]
[""]
[""]
[""]
[""]
[""]
[""]
[""]
[""]
[""]
[""]
[""]
[""]
[""]
[""]
[""]
[""]
[""]
[""]
[""]
[""]
[""]
[""]
[""]
[""]
[""]

{"sheet":"Sheet1","index":2,"n_rows":12,"n_cols":2,"rows_kept":12,"cut":false,"hidden":true,"merged":[]}
[null,"Read Me"]
[null,"Purpose of this Template"]
[1,"This template is to be used by System Manager / COMM. Admin / ACL Admin for informing Saksham Seva about Creating new VPN ID's"]
[null,"How to use this Template?"]
[1,"Open the template "]
[2,"Enter the relevant data (ensure that all the mandatory fields are filled)"]
[null,"How to Inform Saksham Seva from Citrix"]
[1,"Login to Citrix homepage and click on Service Desk"]
[2,"Register a new interaction."]
[3,"Attach this filled template with the Interaction."]
[null,"How to Inform Saksham Seva Mail"]
[1,"System Manager / COMM. Admin / ACL Admin will send email to Saksham.seva@icegate.gov.in from their Icegate email ID."]